bitfinex/quotes_SOLUSD_20240729
["timestamp","ask_amount","ask_price","bid_price","bid_amount"]
[1722291245034,5.4151,184.67,184.6,6.50020333]
[1722291245218,12.7,184.66,184.6,6.50020333]
[1722291245814,19.4082,184.68,184.61,5.4167]
[1722291246030,12.7,184.66,184.62,1.08315536]
[1722291246614,13.9934,184.68,184.62,1.08315536]
[1722291246820,12.7,184.66,184.61,5.4165]
[1722291247039,12.7,184.66,184.62,45.0]
[1722291247545,19.4082,184.68,184.59,13.5432]
[1722291247546,12.7,184.64,184.59,13.5432]
[1722291247727,12.7,184.64,184.54,20.0]
[1722291247728,12.7,184.62,184.56,5.418]
[1722291247916,12.7,184.62,184.55,26.246]
[1722291248123,18.1168,184.61,184.55,13.546]
[1722291248440,12.7,184.6,184.55,13.546]
[1722291248642,12.7,184.6,184.55,18.9645]
[1722291248825,18.1171,184.6,184.53,34.3627]
[1722291249337,20.8368,184.65,184.54,5.4188]
[1722291249547,20.17,184.64,184.54,5.4188]
[1722291249915,20.0,184.64,184.55,1.08352216]
[1722291250312,20.0,184.64,184.54,13.5465]
[1722291250849,5.415,184.67,184.6,5.4169]
[1722291251434,5.415,184.67,184.61,5.4168]
[1722291251746,13.9934,184.68,184.59,13.5428]
[1722291252243,20.0,184.67,184.59,13.5428]
[1722291252740,25.415,184.67,184.6,5.417]
[1722291254246,25.415,184.67,184.59,33.5428]
[1722291254247,25.415,184.67,184.61,5.4167]
[1722291254450,25.415,184.67,184.61,50.4167]
[1722291255328,20.0,184.67,184.59,33.5428]
[1722291255634,5.4161,184.64,184.57,5.4179]
[1722291256039,5.4161,184.64,184.58,5.4176]
[1722291256225,5.4157,184.65,184.58,5.4176]
[1722291256737,5.4153,184.66,184.6,5.4171]
[1722291257338,5.4153,184.66,184.61,1.083261]
[1722291257531,5.4157,184.65,184.59,5.4173]
[1722291257938,5.4163,184.63,184.58,45.0]
[1722291258437,5.4159,184.64,184.58,45.0]
[1722291258756,5.4155,184.66,184.58,50.4176]
[1722291258941,5.4155,184.66,184.6,5.4169]
[1722291259125,38.9555,184.7,184.61,1.08319043]
[1722291259322,5.4153,184.66,184.6,5.4169]
[1722291259554,5.4157,184.65,184.59,5.4173]
[1722291259942,5.4154,184.66,184.59,5.4173]
[1722291260555,5.4154,184.66,184.58,45.0]
[1722291260556,5.4154,184.66,184.6,5.417]
[1722291261655,5.4154,184.66,184.59,5.4172]
[1722291262045,21.2554534,184.69,184.58,45.0]
[1722291262046,5.416,184.64,184.58,45.0]
[1722291262944,5.4165,184.62,184.56,5.4182]
[1722291263261,25.42,184.67,184.58,5.4176]
[1722291263262,5.4156,184.65,184.58,5.4176]
[1722291263470,5.4156,184.65,184.57,13.5449]
[1722291263471,5.4156,184.65,184.59,5.4174]
[1722291263766,5.4153,184.66,184.59,5.4174]
[1722291263958,25.42,184.67,184.6,5.4171]
[1722291264265,20.17,184.69,184.6,5.4171]
[1722291264642,5.4153,184.67,184.6,5.4171]
[1722291265239,5.4148,184.68,184.61,1.08326681]
[1722291265446,20.0,184.69,184.63,5.4161]
[1722291266165,25.4145,184.69,184.63,5.4161]
[1722291266463,25.4145,184.69,184.62,5.4165]
[1722291267960,15.4145,184.69,184.62,5.4165]
[1722291269466,10.0,184.69,184.63,46.08297001]
[1722291269964,0.7635317,184.73,184.66,5.4151]
[1722291269965,6.1768317,184.73,184.66,5.4151]
[1722291270265,6.1768317,184.73,184.67,45.0]
[1722291270459,5.4136,184.72,184.67,45.0]
[1722291270663,5.4136,184.72,184.66,45.0]
[1722291271154,6.1768317,184.73,184.66,50.4153]
[1722291271558,0.7635317,184.73,184.66,65.0]
[1722291271758,0.7635317,184.73,184.68,20.0]
[1722291271970,0.7635317,184.73,184.72,5.4135]
[1722291272945,0.7635317,184.73,184.72,50.4135]
[1722291273148,0.7635317,184.73,184.72,56.8301]
[1722291273645,0.7635317,184.73,184.72,51.4166]
[1722291273962,0.7635317,184.73,184.72,6.4166]
[1722291274969,0.7635317,184.73,184.72,11.8301]
[1722291275560,0.7635317,184.73,184.72,56.8301]
[1722291275764,0.7635317,184.73,184.72,70.364]
[1722291275970,0.7635317,184.73,184.72,90.364]
[1722291276563,0.7635317,184.73,184.72,70.364]
[1722291277649,0.7635317,184.73,184.72,91.44639999]
[1722291277841,0.7635317,184.73,184.72,110.364]
[1722291279276,0.7635317,184.73,184.72,70.364]
[1722291279861,20.0,184.83,184.75,13.5315]
[1722291280053,20.0,184.83,184.76,5.4123]
[1722291280054,25.4103,184.83,184.76,5.4123]
[1722291280258,5.4107,184.82,184.75,13.5315]
[1722291280458,5.411,184.81,184.75,18.9441]
[1722291280962,5.4113,184.8,184.73,5.413]
[1722291281162,5.4109,184.81,184.74,5.4129]
[1722291281472,5.4109,184.81,184.75,5.4126]
[1722291281666,5.4106,184.83,184.77,5.4121]
[1722291281865,20.0,184.82,184.77,5.4121]
[1722291282169,20.0,184.82,184.78,1.0822678]
[1722291282676,25.4104,184.83,184.76,5.4124]
[1722291283152,5.4107,184.82,184.75,5.4126]
[1722291283762,25.42,184.88,184.76,21.08224528]
[1722291284070,5.4098,184.85,184.78,18.941]
[1722291284443,5.4101,184.84,184.78,13.5295]
[1722291284947,5.41,184.84,184.77,5.412]
[1722291285348,26.6754534,184.87,184.76,5.4123]
[1722291285572,26.6754534,184.87,184.75,13.5317]
[1722291285781,5.4106,184.82,184.75,13.5317]
[1722291285964,5.4106,184.82,184.76,1.08229942]
[1722291286146,20.0,184.86,184.76,5.4123]
[1722291286350,0.17,184.85,184.75,13.5317]
[1722291286571,5.4107,184.82,184.75,18.9441]
[1722291286771,5.4109,184.81,184.75,18.9441]
[1722291287276,5.4109,184.81,184.72,6.4166]
[1722291287277,5.4115,184.8,184.74,5.4129]
[1722291287572,25.42,184.78,184.69,15.9394]
[1722291287778,20.0,184.77,184.68,13.5362]
[1722291288083,20.0,184.77,184.67,41.4233]
[1722291288254,5.4126,184.76,184.69,5.4144]
[1722291289980,25.4121,184.77,184.7,5.414]
[1722291290164,40.1767,184.81,184.69,20.0]
[1722291290362,40.1767,184.81,184.7,45.0]
[1722291290554,13.5236,184.87,184.74,20.0]
[1722291290765,25.42,184.86,184.77,5.412]
[1722291291082,25.42,184.86,184.76,5.4124]
[1722291291277,5.4112,184.81,184.75,13.5311]
[1722291291580,5.4112,184.81,184.75,18.9437]
[1722291291769,5.4106,184.82,184.76,5.4124]
[1722291292078,5.4106,184.82,184.75,13.5311]
[1722291292656,5.4098,184.85,184.78,5.4116]
[1722291292856,20.0,184.84,184.79,5.4115]
[1722291293057,20.0,184.84,184.79,5.4112]
[1722291293282,25.4101,184.84,184.78,13.5294]
[1722291293460,20.0,184.84,184.78,13.5294]
[1722291293782,5.4103,184.83,184.75,36.1017]
[1722291293966,5.4103,184.83,184.76,45.0]
[1722291294164,5.4103,184.83,184.75,36.1017]
[1722291294360,5.4107,184.82,184.75,36.1017]
[1722291294763,5.4107,184.82,184.75,41.5141]
[1722291295478,5.4107,184.82,184.76,5.4123]
[1722291295661,2.34388377,184.81,184.75,22.57]
[1722291295864,1.25825651,184.8,184.75,22.57]
[1722291296183,1.25825651,184.8,184.75,27.9825]
[1722291296880,1.25825651,184.8,184.78,5.4117]
[1722291298192,1.25825651,184.8,184.77,5.412]
[1722291299057,1.25825651,184.8,184.79,18.9403]
[1722291299477,1.25825651,184.8,184.79,13.5288]
[1722291299994,1.25825651,184.8,184.77,5.412]
[1722291300169,1.25825651,184.8,184.76,63.9433]
[1722291300374,1.25825651,184.8,184.76,58.531]
[1722291300678,1.25825651,184.8,184.76,13.531]
[1722291301077,1.25825651,184.8,184.75,22.57]
[1722291301078,6.66945651,184.8,184.75,22.57]
[1722291301260,1.25825651,184.8,184.75,22.57]
[1722291301664,1.25825651,184.8,184.75,27.9826]
[1722291302070,5.4116,184.79,184.75,6.1283]
[1722291302267,1.25825651,184.8,184.72,33.5333]
[1722291302491,1.25825651,184.8,184.77,5.412]
[1722291302670,1.25825651,184.8,184.76,5.4123]
[1722291302871,1.25825651,184.8,184.75,13.5316]
[1722291303073,6.66945651,184.8,184.71,29.3495]
[1722291303266,1.25825651,184.8,184.74,5.4129]
[1722291304068,1.25825651,184.8,184.73,13.5325]
[1722291304386,1.25825651,184.8,184.77,5.4121]
[1722291305270,1.25825651,184.8,184.76,13.5309]
[1722291306076,1.25825651,184.8,184.77,1.08235047]
[1722291306274,1.25825651,184.8,184.78,5.4117]
[1722291306667,1.25825651,184.8,184.79,5.4115]
[1722291307078,1.25825651,184.8,184.74,5.413]
[1722291307510,6.66975651,184.8,184.73,5.4132]
[1722291307883,5.4127,184.75,184.7,6.0495]
[1722291308081,5.4124,184.77,184.7,6.0495]
[1722291308283,5.412,184.78,184.72,5.4135]
[1722291308504,1.0854534,184.77,184.7,6.0495]
[1722291308684,6.4975534,184.77,184.71,5.4136]
[1722291309081,6.4975534,184.77,184.7,19.5846]
[1722291309308,1.0854534,184.77,184.68,5.4147]
[1722291309483,5.413,184.74,184.67,22.0186]
[1722291309683,1.0854534,184.73,184.68,5.4147]
[1722291309883,5.4126,184.76,184.68,5.4147]
[1722291310083,5.4126,184.76,184.69,5.4144]
[1722291310504,1.0854534,184.76,184.67,16.6036]
[1722291310890,5.413,184.74,184.68,5.4146]
[1722291311211,5.4127,184.75,184.68,5.4146]
[1722291311386,5.413,184.74,184.68,5.4146]
[1722291311582,14.7862534,184.77,184.65,6.518]
[1722291311783,25.42,184.75,184.62,29.186]
[1722291312005,5.4147,184.69,184.62,5.4165]
[1722291312210,1.0854534,184.68,184.62,5.4165]
[1722291312404,1.0854534,184.67,184.6,11.8697]
[1722291312594,40.1767,184.72,184.52,8.13692892]
[1722291312595,2.51353777,184.66,184.55,6.3634]
[1722291312793,5.4159,184.64,184.56,5.418]
[1722291312993,1.25808437,184.63,184.55,7.44548252]
[1722291313215,1.25808437,184.63,184.62,5.4165]
[1722291313895,1.25808437,184.63,184.62,6.49956293]
[1722291314100,1.25808437,184.63,184.62,48.96886293]
[1722291314291,1.25808437,184.63,184.62,93.96886293]
[1722291314605,1.25808437,184.63,184.62,72.8858]
[1722291315495,1.25808437,184.63,184.62,27.8858]
[1722291316001,1.25808437,184.63,184.62,5.4165]
[1722291316315,1.25808437,184.63,184.6,13.5426]
[1722291317090,1.25808437,184.63,184.61,5.4167]
[1722291317503,1.25808437,184.63,184.6,13.5426]
[1722291317916,1.25808437,184.63,184.6,18.9597]
[1722291318297,1.25808437,184.63,184.6,13.5426]
[1722291318488,1.25808437,184.63,184.62,5.4165]
[1722291320809,1.25808437,184.63,184.6,18.9595]
[1722291321011,1.25808437,184.63,184.6,13.5426]
[1722291321819,1.25808437,184.63,184.61,5.4168]
[1722291322426,5.4167,184.62,184.56,13.545]
[1722291322598,1.25808437,184.63,184.58,5.4174]
[1722291322912,1.25791396,184.61,184.6,5.4171]
[1722291327524,1.25791396,184.61,184.6,6.49882597]
[1722291327724,1.25791396,184.61,184.6,11.4315]
[1722291328044,1.25791396,184.61,184.6,56.4315]
[1722291329233,1.25791396,184.61,184.6,92.8421]
[1722291329624,1.25791396,184.61,184.6,72.8421]
[1722291331243,1.25791396,184.61,184.6,73.92512761]
[1722291331625,1.25791396,184.61,184.6,72.8421]
[1722291336230,1.396e-05,184.61,184.6,92.8421]
[1722291336648,1.396e-05,184.61,184.6,72.8421]
[1722291337354,1.396e-05,184.61,184.6,92.8421]
[1722291337530,1.396e-05,184.61,184.6,72.8421]
[1722291337724,1.0854534,184.74,184.68,5.4146]
[1722291338053,25.5828,184.75,184.68,5.4146]
[1722291338259,2.17238451,184.82,184.7,13.5352]
[1722291338555,6.4978534,184.76,184.7,13.5352]
[1722291338751,5.4127,184.75,184.7,13.5352]
[1722291339054,1.0854534,184.74,184.7,13.5352]
[1722291339553,5.413,184.75,184.68,5.4147]
[1722291339858,20.0,184.74,184.7,5.4141]
[1722291340033,20.17,184.76,184.7,5.4141]
[1722291340233,21.2554534,184.76,184.7,5.4141]
[1722291340539,1.22418471,184.75,184.7,5.4141]
[1722291340740,1.22418471,184.75,184.71,5.4138]
[1722291341453,1.22418471,184.75,184.7,5.4141]
[1722291341957,1.22418471,184.75,184.69,18.9505]
[1722291342161,6.63698471,184.75,184.69,13.5361]
[1722291342341,6.4984534,184.74,184.68,5.4146]
[1722291342544,6.4984534,184.74,184.66,13.5383]
[1722291342545,26.6754534,184.74,184.66,13.5383]
[1722291342857,20.0,184.73,184.66,13.5383]
[1722291343039,6.6690534,184.72,184.66,18.9536]
[1722291343239,0.17,184.72,184.67,5.4149]
[1722291343457,1.2554534,184.72,184.67,5.4149]
[1722291343756,25.42,184.74,184.68,13.5361]
[1722291343963,25.42,184.74,184.69,5.4142]
[1722291345560,26.5054534,184.74,184.63,20.0]
[1722291345762,26.5054534,184.74,184.69,5.4142]
[1722291345962,25.42,184.74,184.7,5.4141]
[1722291346259,1.22418471,184.75,184.67,20.0]
[1722291347347,1.22418471,184.75,184.69,5.4142]
[1722291347545,1.22418471,184.75,184.68,13.5362]
[1722291347749,1.22418471,184.75,184.7,5.4141]
[1722291348465,1.22418471,184.75,184.69,5.4144]
[1722291348759,6.63698471,184.75,184.68,18.9509]
[1722291348959,6.63698471,184.75,184.68,13.5362]
[1722291348960,6.4984534,184.74,184.68,13.5362]
[1722291349168,6.4984534,184.74,184.68,18.9509]
[1722291349458,1.0854534,184.74,184.68,18.9509]
[1722291349767,32.05688471,184.75,184.69,5.4143]
[1722291350541,26.64418471,184.75,184.69,5.4143]
[1722291351247,6.4984534,184.74,184.68,13.5362]
[1722291351448,1.39418471,184.73,184.65,13.5391]
[1722291351648,2.30963811,184.72,184.65,18.9544]
[1722291351856,7.72343811,184.72,184.65,18.9544]
[1722291352658,5.4139,184.71,184.65,18.9544]
[1722291353058,1.0854534,184.7,184.65,18.9544]
[1722291353647,1.0854534,184.7,184.63,5.4159]
[1722291353648,6.4996534,184.7,184.63,5.4159]
[1722291353951,26.4996534,184.7,184.63,5.4159]
[1722291354353,0.17,184.69,184.63,5.4159]
[1722291354671,1.0854534,184.68,184.63,5.4159]
[1722291355444,1.0854534,184.68,184.62,13.5412]
[1722291355445,14.9267,184.69,184.64,5.4159]
[1722291355647,1.22418471,184.68,184.64,5.4159]
[1722291355951,1.22418471,184.68,184.63,5.4161]
[1722291356665,1.0854534,184.67,184.62,13.5412]
[1722291356855,1.0854534,184.67,184.62,18.9576]
[1722291357377,1.0854534,184.67,184.59,13.5434]
[1722291357577,1.0854534,184.67,184.62,5.4164]
[1722291359452,21.22418471,184.68,184.63,5.4162]
[1722291359789,1.22418471,184.68,184.62,20.0]
[1722291359954,1.22418471,184.68,184.63,1.08114887]
[1722291360459,1.22418471,184.68,184.66,5.4153]
[1722291361363,1.22418471,184.68,184.67,5.415]
[1722291361681,1.22418471,184.68,184.66,5.4153]
[1722291362765,1.22418471,184.68,184.65,13.539]
[1722291363777,1.22418471,184.68,184.65,18.9545]
[1722291364278,1.22418471,184.68,184.65,13.539]
[1722291364459,1.22418471,184.68,184.67,5.415]
[1722291366258,14.7567,184.79,184.68,20.0]
[1722291366463,5.4107,184.82,184.76,5.4122]
[1722291366773,5.4107,184.82,184.67,65.0]
[1722291366774,14.7567,184.83,184.77,18.9417]
[1722291366977,20.1671,184.83,184.77,13.5299]
[1722291368693,5.4106,184.82,184.77,13.5299]
[1722291369183,15.8421534,184.83,184.73,13.5325]
[1722291369481,5.4113,184.8,184.73,13.5325]
[1722291369655,5.4113,184.8,184.73,18.9457]
[1722291370360,6.4967534,184.8,184.73,18.9457]
[1722291370579,5.4115,184.79,184.73,18.9457]
[1722291371173,5.4112,184.81,184.73,18.9457]
[1722291371386,5.4112,184.81,184.74,5.4128]
[1722291371680,14.7567,184.83,184.72,22.8926]
[1722291371891,14.7567,184.87,184.76,20.0]
[1722291372482,20.1659,184.87,184.8,5.4109]
[1722291372788,20.1659,184.87,184.81,5.4109]
[1722291373169,20.0,184.86,184.8,5.4112]
[1722291373373,25.4095,184.86,184.8,5.4112]
[1722291373675,20.0,184.86,184.79,13.5285]
[1722291373871,5.4104,184.83,184.76,5.4121]
[1722291374579,5.4104,184.83,184.75,13.5313]
[1722291374580,31.0,184.85,184.75,13.5313]
[1722291374778,20.0,184.84,184.79,5.4114]
[1722291375082,20.0,184.84,184.78,13.5295]
[1722291375291,14.7567,184.87,184.81,13.5272]
[1722291375599,5.4105,184.83,184.77,13.5297]
[1722291375768,5.41,184.84,184.77,18.9418]
[1722291377290,5.41,184.84,184.78,5.4118]
[1722291377590,5.4098,184.85,184.78,5.4118]
[1722291378094,5.41,184.84,184.78,5.4118]
[1722291378309,5.41,184.84,184.77,18.9417]
[1722291379390,6.6658534,184.83,184.77,18.9417]
[1722291379586,6.6658534,184.83,184.77,13.5297]
[1722291380181,0.17,184.83,184.78,5.4118]
[1722291380579,5.5801,184.84,184.78,5.4118]
[1722291380992,25.42,184.85,184.77,13.5297]
[1722291381198,20.0,184.86,184.81,5.4109]
[1722291383500,20.0,184.87,184.8,13.5279]
[1722291384596,20.0,184.87,184.81,5.4106]
[1722291384772,21.0854534,184.87,184.83,13.5258]
[1722291385695,21.0854534,184.87,184.79,13.5282]
[1722291386076,25.4093,184.87,184.81,5.4109]
[1722291387384,20.0,184.87,184.81,5.4109]
[1722291387579,20.0,184.87,184.83,5.4101]
[1722291387789,20.0,184.87,184.84,5.4099]
[1722291388102,20.0,184.89,184.84,5.4099]
[1722291388285,20.0,184.9,184.84,5.4099]
[1722291388476,20.0,184.9,184.82,13.526]
[1722291388477,20.0,184.9,184.85,5.4096]
[1722291388901,20.0,184.9,184.84,5.41]
[1722291389702,25.4084,184.9,184.82,18.9364]
[1722291389908,5.4087,184.89,184.82,18.9364]
[1722291390086,5.4087,184.89,184.83,5.4102]
[1722291390286,20.0,184.9,184.83,1.08190487]
[1722291390803,20.0,184.9,184.84,5.4098]
[1722291390982,20.0,184.9,184.85,5.4096]
[1722291391298,0.7635317,184.91,184.85,5.4096]
[1722291391505,6.1715317,184.91,184.85,5.4096]
[1722291391678,20.0,184.9,184.85,5.4096]
[1722291392495,20.7635317,184.91,184.85,5.4096]
[1722291392702,20.7635317,184.91,184.86,5.4094]
[1722291393311,26.1716317,184.91,184.84,18.9342]
[1722291394075,0.7635317,184.91,184.9,5.4083]
[1722291394312,0.7635317,184.91,184.9,18.9291]
[1722291394493,0.7635317,184.91,184.9,20.01056234]
[1722291395191,0.7635317,184.91,184.9,18.9291]
[1722291395376,0.7635317,184.91,184.9,13.5208]
[1722291395574,0.7635317,184.91,184.88,28.3784]
[1722291395976,0.7635317,184.91,184.88,22.9696]
[1722291396175,0.7635317,184.91,184.88,6.4924]
[1722291396605,0.7635317,184.91,184.85,5.4095]
[1722291397340,6.1717317,184.91,184.84,11.5415]
[1722291397523,1.0854534,184.9,184.84,6.1315]
[1722291397705,6.4937534,184.9,184.84,6.1315]
[1722291398123,6.4937534,184.9,184.83,35.4127]
[1722291398532,5.4083,184.9,184.84,5.41]
[1722291399109,0.7635317,184.91,184.83,50.0024]
[1722291399426,0.7635317,184.91,184.86,5.4094]
[1722291400430,0.7635317,184.91,184.86,13.5237]
[1722291400606,0.7635317,184.91,184.87,1.08172761]
[1722291401416,0.7635317,184.91,184.88,5.4086]
[1722291401810,0.7635317,184.91,184.89,14.60293197]
[1722291402305,0.7635317,184.91,184.9,5.4083]
[1722291402818,0.7635317,184.91,184.9,42.75976143]
[1722291403011,0.7635317,184.91,184.9,87.75976143]
[1722291403412,0.7635317,184.91,184.9,86.6783]
[1722291404722,0.7635317,184.91,184.9,107.75956348]
[1722291405306,20.0,185.01,184.93,13.518]
[1722291405503,26.36177367,185.05,184.94,1.08113943]
[1722291405706,26.36177367,185.05,184.94,65.0]
[1722291405907,5.4041,185.05,184.98,5.4059]
[1722291406338,5.4041,185.05,184.99,5.4056]
[1722291406627,5.4041,185.05,184.98,5.4059]
[1722291406830,5.4043,185.04,184.97,21.861]
[1722291407014,5.404,185.05,184.97,21.8608]
[1722291407619,1.0854534,185.07,184.97,16.4548]
[1722291408130,5.4046,185.03,184.97,21.861]
[1722291408357,5.4042,185.05,184.97,16.4548]
[1722291408627,5.4047,185.03,184.97,16.4548]
[1722291409240,5.4042,185.05,184.97,16.4548]
[1722291409429,20.0,185.04,184.98,5.4059]
[1722291409733,20.0,185.04,184.97,16.4548]
[1722291409911,25.4042,185.04,184.97,16.4548]
[1722291410423,6.4899534,185.03,184.97,21.861]
[1722291410726,20.0,185.04,184.97,16.4548]
[1722291411042,5.4047,185.03,184.97,16.4548]
[1722291411333,1.0854534,185.02,184.97,16.4548]
[1722291411632,5.4051,185.01,184.97,16.4548]
[1722291411831,5.4054,185.0,184.97,16.4548]
[1722291412028,5.405,185.02,184.97,16.4548]
[1722291412244,5.4045,185.03,184.97,16.4548]
[1722291412451,20.0,185.02,184.97,16.4548]
[1722291413250,20.0,185.02,184.99,5.4056]
[1722291413551,25.42,185.06,184.97,21.861]
[1722291413552,25.4044,185.04,184.97,21.861]
[1722291413746,5.4046,185.03,184.97,16.4548]
[1722291413955,5.4046,185.03,184.97,21.861]
[1722291414165,20.0,185.02,184.97,16.4548]
[1722291414854,5.4051,185.01,184.97,16.4548]
[1722291416530,5.4054,185.0,184.95,6.5124]
[1722291418160,5.4051,185.01,184.95,6.5124]
[1722291418351,20.0,185.02,184.95,6.5124]
[1722291418658,25.4048,185.02,184.96,6.48764762]
[1722291419061,25.4048,185.02,184.96,5.4065]
[1722291419235,20.0,185.02,184.96,5.4065]
[1722291419437,5.4042,185.04,184.96,13.5159]
[1722291419632,5.4042,185.04,184.98,5.4059]
[1722291419837,20.0,185.03,184.97,5.4062]
[1722291420238,20.0,185.03,184.98,5.4059]
[1722291421060,0.94159229,185.08,185.0,11.8106]
[1722291421239,5.4033,185.07,185.0,11.8106]
[1722291421447,5.404,185.05,185.0,6.4055]
[1722291422064,5.4033,185.08,185.02,5.4047]
[1722291422246,5.4033,185.07,185.0,11.8106]
[1722291422445,5.4037,185.06,185.0,11.8106]
[1722291422766,5.4045,185.03,185.0,6.4055]
[1722291423466,5.4042,185.04,185.0,6.4055]
[1722291423649,5.4046,185.03,185.0,6.4055]
[1722291423968,1.0854534,185.02,184.96,6.2145]
[1722291424144,0.17,185.06,184.96,6.2145]
[1722291424346,5.4053,185.01,184.96,6.2145]
[1722291424648,20.17,185.06,184.96,6.2145]
[1722291424852,20.0,185.06,184.96,6.2145]
[1722291425047,25.4039,185.06,184.97,33.515]
[1722291425254,20.0,185.06,185.0,18.9186]
[1722291425665,25.4038,185.06,185.0,18.9186]
[1722291426169,25.4038,185.06,185.0,13.5133]
[1722291426765,5.4039,185.05,185.0,13.5133]
[1722291427564,20.0,185.06,185.0,18.9186]
[1722291428474,20.0,185.06,185.01,25.405]
[1722291428643,20.7635317,185.1,185.01,25.405]
[1722291429265,5.4031,185.08,185.03,22.2479]
[1722291429573,0.7635317,185.1,185.03,22.2479]
[1722291429871,6.1661317,185.1,185.03,27.6521]
[1722291430054,6.1661317,185.1,185.04,5.4042]
[1722291430247,6.1661317,185.1,185.04,6.48487489]
[1722291430885,6.1661317,185.1,185.04,5.4042]
[1722291431253,6.1661317,185.1,185.03,47.6523]
[1722291432559,5.4027,185.09,185.03,47.6523]
[1722291432750,0.7635317,185.1,185.04,6.48486902]
[1722291432952,6.1660317,185.1,185.04,6.48486902]
[1722291433447,0.7635317,185.1,185.05,5.4039]
[1722291434350,0.7635317,185.1,185.05,20.0]
[1722291434556,0.7635317,185.1,185.07,5.4032]
[1722291435149,0.7635317,185.1,185.05,33.5097]
[1722291435150,0.7635317,185.1,185.09,5.4027]
[1722291435344,0.7635317,185.1,185.08,13.5069]
[1722291435881,0.7635317,185.1,185.06,5.4036]
[1722291436248,0.7635317,185.1,185.04,18.9138]
[1722291436566,0.7635317,185.1,185.05,5.4039]
[1722291437955,0.7635317,185.1,185.04,13.5099]
[1722291438377,0.7635317,185.1,185.07,5.4033]
[1722291438968,0.7635317,185.1,185.08,5.403]
[1722291439483,0.7635317,185.1,185.07,5.4031]
[1722291439852,0.7635317,185.1,185.06,13.5084]
[1722291440047,0.7635317,185.1,185.07,65.0]
[1722291440267,0.7635317,185.1,185.09,5.4027]
[1722291441382,0.7635317,185.1,185.09,18.9096]
[1722291441562,0.7635317,185.1,185.09,13.5069]
[1722291443367,13.3935317,185.1,185.05,13.5093]
[1722291444173,13.3935317,185.1,185.08,13.5075]
[1722291444174,0.7635317,185.1,185.08,13.5075]
[1722291444374,0.7635317,185.1,185.09,5.4027]
[1722291444778,0.7635317,185.1,185.09,38.0327]
[1722291444974,0.7635317,185.1,185.09,89.1555]
[1722291445181,0.7635317,185.1,185.09,116.1693]
[1722291445492,0.7635317,185.1,185.09,131.882]
[1722291446374,0.7635317,185.1,185.09,111.882]
[1722291447374,0.7635317,185.1,185.09,84.8682]
[1722291449568,0.7635317,185.1,185.09,104.8682]
[1722291449990,0.7635317,185.1,185.09,84.8682]
[1722291451307,0.7635317,185.1,185.09,72.2382]
[1722291451469,0.7635317,185.1,185.09,27.2382]
[1722291451785,0.7635317,185.1,185.09,84.8682]
[1722291453685,0.7635317,185.1,185.09,72.2382]
[1722291454200,0.7635317,185.1,185.09,104.8682]
[1722291454569,0.7635317,185.1,185.09,110.2992]
[1722291456866,0.7635317,185.1,185.09,104.8682]
[1722291457073,5.3987,185.23,185.15,13.5025]
[1722291457289,12.63,185.21,185.16,6.48045731]
[1722291457592,12.63,185.2,185.16,5.4006]
[1722291457772,5.3986,185.24,185.17,6.4802995]
[1722291457976,12.63,185.22,185.18,5.3999]
[1722291458173,5.3981,185.25,185.19,6.47962739]
[1722291458397,12.63,185.22,185.19,6.47962739]
[1722291458575,12.63,185.23,185.19,6.47962739]
[1722291458889,12.63,185.25,185.2,13.4987]
[1722291459102,12.63,185.24,185.2,13.4987]
[1722291459286,12.63,185.24,185.21,1.0745707]
[1722291459608,12.63,185.24,185.2,18.8981]
[1722291459980,12.63,185.24,185.2,13.4987]